Cogmind - Beta 13 @@@ ROGUE MODE // 2024.04.04 @ 14:53:40 Player: buwwet Result: Self-destructed Performance ------------- Evolutions (2) 1000 Regions Visited (4) 800 Robots Destroyed (68) 340 Value Destroyed (1587) 1587 Prototype IDs (1) 20 Alien Tech Used (0) 0 Bonus (0) 0 TOTAL SCORE: 3747 Bonus ------- None Cogmind --------- Core Integrity 355/550 Matter 293/300 Energy 160/160 System Corruption 0% Temperature Cool (0) Movement Walking (190) Ox1 Location -8/Materials Parts ------- > --- POWER (1) -------- Light Nuclear Core > --- PROPULSION (4) --- Aluminum Leg Aluminum Leg > --- UTILITY (4) ------ Heat Sink Medium Storage Unit Hacking Suite > --- WEAPON (2) ------- Heavy EM Pulse Gun Particle Gun > --- INVENTORY (10) --- Light Ion Engine Flight Unit Improved Heat Sink Hardened Light Armor Plating Authchip [R/Combat] Datajack Peak State ------------ > --- POWER ------------ Improved Ion Engine > --- PROPULSION ------- Aluminum Leg Aluminum Leg Aluminum Leg Carbon-fiber Leg > --- UTILITY ---------- Heat Sink Medium Storage Unit Hardened Light Armor Plating Hacking Suite > --- WEAPON ----------- Heavy EM Pulse Gun Heavy Assault Rifle > --- INVENTORY -------- Light Ion Engine Flight Unit Hardened Light Armor Plating Authchip [R/Combat] Datajack Stasis Trap [Rating: 20] Favorites ----------- Power Ion Engine Engine Ion Engine Power Core Light Nuclear Core Propulsion Light Treads Treads Light Treads Leg Aluminum Leg Wheel Wheel Flight Unit Flight Unit Utility Medium Storage Unit Device Heat Sink Storage Medium Storage Unit Hackware Hacking Suite Protection Hardened Light Armor Plating Weapon EM Pulse Gun Energy Gun EM Pulse Gun Energy Cannon Beam Cannon Ballistic Gun Heavy Assault Rifle Impact Weapon Mace Build | -11 -10 -9 -9 -8 ------- Run | Yrd Mat Mat Min Mat Slots Evolved 4 | . . 2 . 2 Power . | . . . . . Propulsion 2 | . . 1 . 1 Utility 2 | . . 1 . 1 Weapon . | . . . . . Parts Attached 57 | 6 4 11 21 15 Power 8 | 1 . 2 2 3 Engine 7 | 1 . 2 2 2 Core 1 | . . . . 1 Reactor . | . . . . . Propulsion 22 | 2 1 3 11 5 Treads 7 | 2 1 3 1 . Leg 12 | . . . 8 4 Wheel 2 | . . . 1 1 Hover . | . . . . . Flight 1 | . . . 1 . Utility 12 | 1 2 4 4 1 Device 6 | . 1 3 1 1 Storage 3 | 1 1 1 . . Processor . | . . . . . Hackware 1 | . . . 1 . Protection 2 | . . . 2 . Artifact . | . . . . . Weapon 15 | 2 1 2 4 6 Energy Gun 11 | 2 . 1 2 6 Energy Cannon 1 | . 1 . . . Ballistic Gun 2 | . . 1 1 . Ballistic Cannon . | . . . . . Launcher . | . . . . . Special Weapon . | . . . . . Impact Weapon 1 | . . . 1 . Slashing Weapon . | . . . . . Piercing Weapon . | . . . . . Special Melee Weapon . | . . . . . Unidentified Prototypes 1 | . . . . 1 Parts Lost 25 | . 1 4 13 7 Power 3 | . . 1 1 1 Propulsion 11 | . . 1 6 4 Utility 6 | . 1 1 3 1 Weapon 5 | . . 1 3 1 Highest Loss Streak 4 | . 1 3 4 3 To Critical Strikes . | . . . . . Average Slot Usage (%) 91 | . 94 95 87 88 Engine 11 | . 14 10 10 6 Treads 17 | . 28 32 6 . Leg 9 | . . . 16 27 Wheel 1 | . . . 2 2 Flight 1 | . . . 3 . Device 6 | . 2 12 5 9 Storage 15 | . 20 19 11 9 Hackware 2 | . . . 4 9 Protection 5 | . . . 10 7 Energy Gun 10 | . 20 7 5 12 Energy Cannon 3 | . 7 6 . . Ballistic Gun 3 | . . 7 5 3 Impact Weapon 2 | . . . 5 . Naked Turns . | . . . . . Heaviest Build 29 | 13 17 26 29 29 Greatest Support 60 | 40 40 60 60 45 Greatest Overweight (x) 2 | . . . 2 2 Average Overweight (x) . | . . . 1 . Largest Inventory Capacity 10 | 8 8 10 10 10 Average Capacity 9 | 7 8 9 10 10 Most Carried 10 | 5 8 10 10 9 Average Carried 7 | 3 6 8 8 6 Final Capacity 10 | 8 8 10 10 10 Final Carried 10 | 5 8 10 10 6 Class Distribution -------------------- 63% | Mutant 36% | Scavenger-Mutant Dominant Class ---------------- Mutant | -10/Materials Mutant | -9/Materials Scavenger-Mutant | -9/Mines Scavenger-Mutant | -8/Materials Resources | -11 -10 -9 -9 -8 ----------- Run | Yrd Mat Mat Min Mat Matter Collected 1051 | 203 194 209 271 174 Remotely . | . . . . . Salvage Created 2223 | . 577 537 536 573 Parts 110 | . 29 32 28 21 Haulers Intercepted 4 | . 1 2 . 1 Recyclers Shooed 2 | . 1 . 1 . Parts Field Recycled . | . . . . . Retrieved Matter . | . . . . . Parts Self-Destructed . | . . . . . Prevented . | . . . . . Kills | -11 -10 -9 -9 -8 ------- Run | Yrd Mat Mat Min Mat Combat Hostiles Destroyed 50 | . 11 11 17 11 Melee 6 | . . . 6 . Guns 29 | . 6 8 5 10 Cannons 7 | . 4 3 . . AOE 4 | . 1 . 2 1 Classes Destroyed 12 | . 7 1 3 1 Worker 3 | . 1 . . 2 Builder 1 | . . . 1 . Tunneler 5 | . . . 5 . Hauler 4 | . 1 2 . 1 Recycler 2 | . 1 . . 1 Operator 2 | . 1 1 . . Watcher 3 | . 2 1 . . Swarmer 17 | . 5 3 6 3 Grunt 25 | . 6 6 7 6 Sentry 4 | . . 2 2 . Hunter 2 | . . . . 2 Assembled 2 | . . . 2 . Best Kill Streak 6 | . 5 5 3 6 Combat Bots Only 5 | . 4 5 3 5 Max Kills in Single Turn 2 | . 2 1 2 2 Gunslinging . | . . . . . Exploded 2 | . 1 . 2 1 Melee 1 | . . . 1 . Uniques/NPCs Destroyed . | . . . . . Combat | -11 -10 -9 -9 -8 -------- Run | Yrd Mat Mat Min Mat Hostile Shots Fired 351 | . 49 72 121 109 Missed 85 | . 15 21 18 31 Damage Taken 3633 | . 473 535 1633 992 Core 618 | . 85 72 266 195 Absorbed by Shields . | . . . . . Core Remaining (%) 60 | 100 66 . 15 . Volleys Fired 151 | . 38 44 30 39 Largest 2 | . 2 2 2 2 Hottest 128 | . 100 100 88 128 Shots Fired 259 | . 73 81 41 64 Gun 215 | . 52 58 41 64 Cannon 44 | . 21 23 . . Launcher . | . . . . . Special . | . . . . . Kinetic 76 | . . 41 29 6 Thermal 114 | . 35 37 6 36 Explosive . | . . . . . Electromagnetic 69 | . 38 3 6 22 Robot Hit Streak 15 | . 6 14 15 11 Robot Miss Streak 4 | . 3 4 3 3 Penetration Max . | . . . . . Secondary Targets 3 | . . 1 . 2 Max Gunslinging Chain 1 | . . 1 . 1 Shots Hit Robots 205 | . 45 52 62 46 Core Hits 84 | . 24 24 13 23 Critical Kills 1 | . . . 1 . Critical Parts Destroyed 7 | . . 1 6 . Critical Strikes 15 | . 1 2 7 5 Burn 5 | . . 1 . 4 Destroy 1 | . . 1 . . Corrupt 2 | . 1 . . 1 Smash 7 | . . . 7 . Melee Attacks 59 | . . . 59 . Impact 59 | . . . 59 . Slashing . | . . . . . Piercing . | . . . . . Sneak Attacks 9 | . . . 9 . Combat Hostiles . | . . . . . Follow-up Attacks . | . . . . . Damage Inflicted 4604 | . 917 829 1999 859 Guns 2195 | . 452 588 409 746 Cannons 468 | . 227 241 . . Explosions 433 | . 238 . 86 109 Melee 1485 | . . . 1485 . Ramming 23 | . . . 19 4 Kinetic 705 | . . 382 303 20 Thermal 1688 | . 489 434 181 584 Explosive . | . . . . . Electromagnetic 703 | . 428 13 11 251 Impact 1485 | . . . 1485 . Slashing . | . . . . . Piercing . | . . . . . Highest Corruption 6 | . . . 6 . Average Corruption 6 | . . . 6 . Corruption Purged . | . . . . . Corruption Blocked . | . . . . . Effects 22 | . . . 22 . Message Errors 6 | . . . 6 . Matter Fused 5 | . . . 5 . Heat Flow Errors 3 | . . . 3 . Energy Discharges 3 | . . . 3 . Parts Rejected 1 | . . . 1 . Data Loss (minor) 3 | . . . 3 . Alerts 1 | . . . 1 . Overload Shots . | . . . . . Overflow Damage 653 | . 6 15 632 . Projectiles 15 | . . 15 . . Explosions 31 | . 6 . 25 . Melee 607 | . . . 607 . Knockbacks 3 | . . . 3 . Impact 3 | . . . 3 . Kinetic . | . . . . . Secondary . | . . . . . Self-Inflicted Damage 182 | . 143 . 39 . Shots 5 | . 4 . 1 . Rammed 2 | 1 . . 1 . Targets Rammed 4 | 1 . . 2 1 Kicked 2 | . . . 1 1 Crushed . | . . . . . Highest Temperature 675 | . 195 102 315 675 Average Temperature 93 | . 73 27 138 171 Received Heat Transfer 1109 | . 81 159 563 306 Effects 9 | . . . 2 7 Shutdowns 1 | . . . . 1 Energy Bleed 4 | . . . 1 3 Matter Decay 1 | . . . . 1 Short Circuit 2 | . . . 1 1 Damage (minor) 1 | . . . . 1 Siege Activations . | . . . . . Robots Corrupted . | . . . . . Combat Hostiles . | . . . . . Parts Fried 9 | . . . 8 1 Impact Corruptions 25 | . . . 25 . Robots Melted . | . . . . . Combat Hostiles . | . . . . . Parts Melted 4 | . . 2 . 2 Heat Transferred 3856 | . 1056 1073 322 1405 Parts Sabotaged . | . . . . . Parts Stolen . | . . . . . Parts Stripped . | . . . . . Power Chain Reactions 6 | . 4 . 1 1 Alert | -11 -10 -9 -9 -8 ------- Run | Yrd Mat Mat Min Mat Peak Influence 262 | . 144 182 163 262 Initial 70 | . . 9 70 15 Average 59 | . 39 77 52 127 Maximum Alert Level 1 | . . . . 1 Low Security (%) 97 | 100 100 100 100 75 Level 1 2 | . . . . 24 Level 2 . | . . . . . Level 3 . | . . . . . Level 4 . | . . . . . Level 5 . | . . . . . High Security . | . . . . . Max Security . | . . . . . Squads Dispatched 7 | . 2 3 . 2 Investigation 2 | . . 1 . 1 Extermination . | . . . . . Reinforcement 4 | . 2 2 . . Assault . | . . . . . Garrison 1 | . . . . 1 Intercept . | . . . . . Searches Triggered . | . . . . . Construction Impeded . | . . . . . Haulers Reinforced . | . . . . . Active Scanning Responses . | . . . . . Cargo Convoy Interrupts . | . . . . . Stealth | -11 -10 -9 -9 -8 --------- Run | Yrd Mat Mat Min Mat Distress Signals 5 | . 2 3 . . Communications Jammed . | . . . . . Distress Signals . | . . . . . Times Spotted 75 | . 20 18 22 15 Peak Tracking Total 6 | . 6 6 4 5 Tactical Retreats 4 | . 2 . 2 . Traps | -11 -10 -9 -9 -8 ------- Run | Yrd Mat Mat Min Mat Traps Triggered . | . . . . . Indirectly . | . . . . . Trap Hack Attempts . | . . . . . Triggered . | . . . . . Disarmed . | . . . . . Reprogrammed . | . . . . . Reused 1 | . . . . 1 Traps Extracted . | . . . . . Installed 2 | . . . . 2 Triggered 1 | . . . . 1 Most Traps Carried 2 | . . . 2 2 Machines | -11 -10 -9 -9 -8 ---------- Run | Yrd Mat Mat Min Mat Machines Disabled 3 | . 1 . . 2 Max in Single Turn 1 | . 1 . . 1 Machines Repaired . | . . . . . Machines Dismantled . | . . . . . Machines Sabotaged . | . . . . . Overloaded Fab Kills . | . . . . . Hacking | -11 -10 -9 -9 -8 --------- Run | Yrd Mat Mat Min Mat Machines Accessed 12 | . 5 5 . 2 Terminals 11 | . 5 4 . 2 Fabricators . | . . . . . Repair Stations . | . . . . . Recycling Units . | . . . . . Scanalyzers 1 | . . 1 . . Garrison Access . | . . . . . Total Hacks 28 | . 10 12 . 6 Successful 9 | . 1 5 . 3 Failed 19 | . 9 7 . 3 Catastrophic 6 | . 2 3 . 1 Database Lockouts . | . . . . . Manual 24 | . 10 9 . 5 Terminals 26 | . 10 10 . 6 Fabricators . | . . . . . Repair Stations . | . . . . . Recycling Units . | . . . . . Scanalyzers 2 | . . 2 . . Garrison Access . | . . . . . Terminal Hacks 7 | . 1 3 . 3 Branch Access Points 1 | . . 1 . . Alert Level 1 | . . . . 1 Unreport Threat 4 | . 1 1 . 2 Hauler Manifests 1 | . . 1 . . Fabricator Hacks . | . . . . . Repair Station Hacks . | . . . . . Recycling Unit Hacks . | . . . . . Scanalyzer 2 | . . 2 . . Insert Component 1 | . . 1 . . Analyze 1 | . . 1 . . Garrison Access Hacks . | . . . . . Unauthorized Hacks . | . . . . . Terminals . | . . . . . Fabricators . | . . . . . Repair Stations . | . . . . . Recycling Units . | . . . . . Scanalyzers . | . . . . . Garrison Access . | . . . . . Data Cores Recovered 1 | . 1 . . . Used . | . . . . . Hacking Detections 11 | . 5 4 . 2 Full Trace Events 2 | . . 1 . 1 Feedback Events . | . . . . . Feedback Blocked . | . . . . . Robot Schematics Acquired . | . . . . . Robots Built . | . . . . . Authchips . | . . . . . Time . | . . . . . Total Robot Build Rating . | . . . . . Part Schematics Acquired 1 | . . 1 . . Parts Built . | . . . . . Authchips . | . . . . . Time . | . . . . . Total Part Build Rating . | . . . . . Parts Repaired . | . . . . . Time . | . . . . . Parts Recycled . | . . . . . Recycled Matter . | . . . . . Retrieved Matter . | . . . . . Retrieved Components . | . . . . . Parts Scanalyzed 1 | . . 1 . . Part Schematics Acquired 1 | . . 1 . . Parts Damaged . | . . . . . Bothacking | -11 -10 -9 -9 -8 ------------ Run | Yrd Mat Mat Min Mat Used RIF Installer . | . . . . . Robots Hacked . | . . . . . Non-combat . | . . . . . Combat . | . . . . . Robot Hacks Applied . | . . . . . Relay Couplers Released . | . . . . . Fabnet Peak Effective % . | . . . . . Robots Rewired . | . . . . . Allies Hacked . | . . . . . Hacks Repelled . | . . . . . Allies | -11 -10 -9 -9 -8 -------- Run | Yrd Mat Mat Min Mat Total Allies 1 | . . . 1 . Largest Group 1 | . . . 1 . Highest-Rated Group 31 | . . . 31 . Highest-Rated Ally 31 | . . . 31 . Total Orders . | . . . . . Ally Attacks . | . . . . . Total Damage . | . . . . . Kills . | . . . . . Allies Corrupted . | . . . . . Allies Melted . | . . . . . Intel | -11 -10 -9 -9 -8 ------- Run | Yrd Mat Mat Min Mat Robot Analysis Total . | . . . . . Derelict Logs Recovered 2 | . . . 2 . Drone Launches . | . . . . . Drone Recoveries . | . . . . . Exploration | -11 -10 -9 -9 -8 ------------- Run | Yrd Mat Mat Min Mat Turns Passed 3824 | 108 1076 700 1571 369 Spaces Moved 1943 | 60 578 334 809 162 Core 2 | 2 . . . . Treads 1035 | 58 578 334 65 . Legs 597 | . . . 435 162 Wheels 309 | . . . 309 . Hover . | . . . . . Flight . | . . . . . Fastest Speed 50 | 50 160 160 95 120 Average Speed 156 | 156 160 160 159 127 Slowest Speed 260 | 160 160 160 260 260 Overloaded Moves . | . . . . . Propulsion Burnouts . | . . . . . Robots Hopped . | . . . . . Cave-ins Triggered 1 | . . . 1 . Exploration Rate (%) 45 | 5 82 30 96 12 Regions Visited 4 Branch Regions 1 Pre-discovered Areas 2 | . . . 2 . Known Exits Taken 1 | . . 1 . . Unknown Exits Taken 3 | 1 1 . 1 . Scrap Searched 2 | . . . 2 . Spaces Dug 1 | . . . 1 . Terrain Destroyed 18 | . 7 . 8 3 Melee 1 | . . . 1 . Projectile . | . . . . . AOE 17 | . 7 . 7 3 Terrain Rammed . | . . . . . Walls Destroyed . | . . . . . Machines Disabled . | . . . . . Actions | -11 -10 -9 -9 -8 --------- Run | Yrd Mat Mat Min Mat Total 2353 | 71 656 419 947 260 Wait 83 | . 29 19 8 27 Move 1940 | 60 577 333 808 162 Hop . | . . . . . Pick Up 32 | 5 5 6 11 5 Fast Attach 24 | 6 2 5 7 4 Attach 19 | . . 3 9 7 Detach 1 | . . . . 1 Swap 14 | . 2 3 5 4 Drop 25 | . 3 6 8 8 Fire 151 | . 38 44 30 39 Melee 59 | . . . 59 . Ram 1 | . . . 1 . Kick 2 | . . . 1 1 Crush . | . . . . . Escape Stasis . | . . . . . Rewire . | . . . . . Trap 2 | . . . . 2 Miscellaneous . | . . . . . Route ------- -11/Scrapyard -10/Materials (discovered 4 exits: *Mat x2 / [*Min x2]) -9/Materials (discovered 2 exits: *Min / Sto) -9/Mines (discovered 2 exits: *Mat x2) -8/Materials History --------- Turn | Location | Event 7 | -11/Scrapyard | Discovered new exit (range 15) 109 | -11/Scrapyard | Entered Materials 109 | -10/Materials | Discovered new exit (range 8) 313 | -10/Materials | Build established: Mutant 476 | -10/Materials | Discovered new exit (range 8) 873 | -10/Materials | Discovered new exit (range 12) 1144 | -10/Materials | Discovered new exit (range 10) 1185 | -10/Materials | Entered another Materials area 1185 | -9/Materials | Evolved 2 slots: Propulsion x1, Utility x1 1285 | -9/Materials | Identified exit to Mines 1285 | -9/Materials | Identified exit to Storage 1635 | -9/Materials | Lost 3 parts (1p1n1w) 1885 | -9/Materials | Entered Mines 1930 | -9/Mines | Learned location of Zion (-7) 1932 | -9/Mines | Build established: Scavenger-Mutant 2047 | -9/Mines | Lost 4 parts (3n1u) 2212 | -9/Mines | Discovered new exit (range 12) 2219 | -9/Mines | Received a Mining Laser from a helpful Derelict 2306 | -9/Mines | Build established: Mutant 2436 | -9/Mines | Found a hidden stash of uninstalled traps 2485 | -9/Mines | Excavation squad dispatched 2485 | -9/Mines | A large section of the Mines collapsed 2534 | -9/Mines | Crushed by falling debris 2534 | -9/Mines | Core integrity fell below 50% 2574 | -9/Mines | Lost 3 parts (1p1u1w) 2737 | -9/Mines | Core integrity fell below 20% 2763 | -9/Mines | Lost 3 parts (2n1u) 3060 | -9/Mines | Build established: Scavenger-Mutant 3443 | -9/Mines | Discovered new exit (range 8) 3456 | -9/Mines | Entered Materials 3456 | -8/Materials | Evolved 2 slots: Propulsion x1, Utility x1 3735 | -8/Materials | Garrison activated, responded to threat 3808 | -8/Materials | Lost 3 parts (2n1u) 3825 | -8/Materials | Self-destructed Last Messages --------------- 03784_ K-01 Serf collects debris. 03785_ Overheating: Matter decay (-28). 03786_ Overheating: Energy bleed (-20). 03786_ K-01 Serf collects debris. 03787_ Pulse Rifle broken. 03787_ Overheating: Short circuit. 03789_ Overheating: Energy bleed (-12). 03791_ Dropped Broken Pulse Rifle. 03799_ U-05 Engineer builds a Door. 03800_ Acquired 63 matter. 03800_ R-06 Scavenger collects Aluminum Leg. 03803_ R-06 Scavenger destroyed. 03803_ K-01 Serf destroyed. 03803_ K-01 Serf collects debris. 03809_ Destroyed Welding Torch. 03812_ K-01 Serf collects debris. 03814_ Acquired Aluminum Leg. 03817_ K-01 Serf collects debris. 03818_ Kicked K-01 Serf. 03820_ K-01 Serf collects debris. Map ----- +----------------------------------------------------+ | ?????????????????????????????????????????????????? | | ?????????????????????????????????????????????????? | | ?????????????????????????????????????????????????? | | ?????????????????????????????????????????????????? | | ?????????????????????????????????????????????????? | | ?????????????????????????????????????????????????? | | ?????????????????????????????????????????????????? | | ?????????????????????????????????????????????????? | | ????????????????????????????????????###+###??????? | | ???????????????????????############## #??????? | | ?????????????????????? #??????? | | ?????????????????????? T #??????? | | ?????????????????????? #??????? | | ?????????????????????????????####+### #??????? | | ??????????????????????##########????## ##??????? | | ??????????????????????# #?????# ######### | | ??????????????????????# #?????# ## | | ??????????????????????# #?????# ## "" | | ??????????????????????# #?????# ## "" | | ??????????????????????# !![ #?????# ## =="" | | ??????????????????????# !![ #?????#% ##" | | ??????????????????????# !![ #?????# ##T [ | | ??????????????????????# [ #?????# ##" | | ????????????#?????????# [= #?????# ## *^ | | ???????????# ##########+########## #####+### | | ???????????# @%%*% =% k % | | ???????????+ =%*k | | ???????????# kkg gg ! | | ???????????# ###/######+#############/######## | | ???????????## ???? ?????# ??????# [ == #??? | | ?????????????????#???????# " ????# %%%! #??? | | ?????????????????????????# "G" ??# * #??? | | ?????????????????????????# " " """ ## #??? | | ?????????????????????????# """ ## """ " " #??? | | ?????????????????????????# """ ## """ """ #??? | | ?????????????????????????# ??# #??? | | ?????????????????????????# ?????# "T" #??? | | ?????????????????????????######?????###########??? | | ?????????????????????????????????????????????????? | | ?????????????????????????????????????????????????? | | ?????????????????????????????????????????????????? | | ?????????????????????????????????????????????????? | | ?????????????????????????????????????????????????? | | ?????????????????????????????????????????????????? | | ?????????????????????????????????????????????????? | | ?????????????????????????????????????????????????? | | ?????????????????????????????????????????????????? | | ?????????????????????????????????????????????????? | | ?????????????????????????????????????????????????? | | ?????????????????????????????????????????????????? | +----------------------------------------------------+ Best States ------------- Heat Dissipation 41 Energy Generation 14 Energy Capacity 265 Matter Stores 400 Matter Capacity 400 Sight Range 16 Robot Scan Range 14 Terrain Scan Density 10 Armor Coverage 150 Evasion (%) 55 Recoil Reduction 3 Offensive Hacking 10 Authchip Count 1 Item Schematics ----------------- Hacking Suite | -9/Materials | Scanalyzed Robot Schematics ------------------ None Fabricated ------------ Nothing Alien Tech Used ----------------- None Achievements -------------- Shopping List Challenges ------------ None Game ------ Seed RegenerativeShadingDrive Manual? 0 Play Time 00:56:41 Cumulative 11.3 hours Start 2024.04.04 @ 09:43:32 End 2024.04.04 @ 14:53:40 Sessions 7 Manual Loads 0 Difficulty Rogue Special Mode None Game No. 10 Rogue 10 Adventurer 0 Explorer 0 Win Type - Total 0 Types 0/0/0/0/0/0/0/0/0 Lore% 13 Gallery% 17 Achievement% 16 Wizard Run 0 Options --------- Layout 1 ASCII 0 Keyboard 0 Movement Arrows Keybinds 0 Fullscreen 1 Font 24/Tamsyn Map View 50x35 Zoom Use 0% Tactical HUD 1 Map Filters NONE Filters NONE Steam 1 RUN: a4a02dea-f440-425c-80f8-da51e4792441